fUST/lending_fUST_20251024
["ID","MTS","AMOUNT","RATE_DAILY","PERIOD"]
[392256138,1761282650071,-4530.99280629,0.00020938,2]
[392256139,1761282650087,-623.89357415,0.00020938,2]
[392256140,1761282650101,-422.748628,0.00020938,2]
[392256141,1761282650117,-1497.25668317,0.00020938,2]
[392256142,1761282704690,150.0,0.00019739,2]
[392256143,1761282705118,150.0,0.00020679,2]
[392256144,1761282717573,10000.01,0.00020735,2]
[392256145,1761282717596,10000.01,0.00020735,2]
[392256146,1761282717618,10000.01,0.00020735,2]
[392256147,1761282717641,10000.01,0.00020735,2]
[392256148,1761282717664,10000.01,0.00020735,2]
[392256149,1761282717686,10000.01,0.00020735,2]
[392256150,1761282717708,10000.01,0.00020735,2]
[392256151,1761282717730,10000.01,0.00020735,2]
[392256152,1761282717753,10000.01,0.00020735,2]
[392256153,1761282717775,10000.01,0.00020735,2]
[392256154,1761282723864,-967.56,0.00020725,10]
[392256155,1761282724473,-300.0,0.00020734,2]
[392256156,1761282726967,-4275.66536779,0.00020735,2]
[392256157,1761282727015,-10000.01,0.00020735,2]
[392256158,1761282727148,-10000.01,0.00020735,2]
[392256159,1761282727289,-10000.01,0.00020735,2]
[392256160,1761282727406,-10000.01,0.00020735,2]
[392256161,1761282727518,-10000.01,0.00020735,2]
[392256162,1761282727633,-10000.01,0.00020735,2]
[392256163,1761282727745,-10000.01,0.00020735,2]
[392256164,1761282727866,-10000.01,0.00020735,2]
[392256165,1761282727983,-10000.01,0.00020735,2]
[392256166,1761282729910,-10000.01,0.00020735,2]
[392256167,1761282733077,-10000.01,0.00020735,2]
[392256168,1761282733326,-10000.01,0.00020735,2]
[392256169,1761282733459,-10000.01,0.00020735,2]
[392256170,1761282733583,-10000.01,0.00020735,2]
[392256171,1761282735981,-806.3,0.00020725,10]
[392256172,1761282736017,-8387.41,0.00020735,2]
[392256173,1761282739006,-10000.01,0.00020735,2]
[392256174,1761282739051,500.0,0.00035968,60]
[392256175,1761282739095,-10000.01,0.00020735,2]
[392256176,1761282739201,-10000.01,0.00020735,2]
[392256177,1761282739303,500.0,0.00035968,60]
[392256178,1761282739360,-10000.01,0.00020735,2]
[392256179,1761282739543,500.0,0.00035968,60]
[392256180,1761282739764,500.0,0.00035968,60]
[392256181,1761282740065,500.0,0.00035968,60]
[392256182,1761282740319,500.0,0.00035968,60]
[392256183,1761282740565,500.0,0.00035968,60]
[392256184,1761282740802,227.30174516,0.00035968,60]
[392256185,1761282749769,196.0,0.00016,2]
[392256186,1761282749840,196.0,0.0001635,2]
[392256187,1761282749915,196.0,0.000167,2]
[392256188,1761282749995,196.0,0.0001705,2]
[392256189,1761282750222,196.0,0.000174,2]
[392256190,1761282750320,196.0,0.0001775,2]
[392256191,1761282752659,5000.0,0.00018,2]
[392256192,1761282776158,4850.0,0.00018,2]
[392256193,1761282789970,300.0,0.00018,2]
[392256194,1761282850420,200.0,0.00018,2]
[392256195,1761282864668,-269.06291153,0.000181,2]
[392256196,1761282864688,-180.97663684,0.00018733,2]
[392256197,1761282924160,-300.0,0.000187,2]
[392256198,1761282924185,-6.91061351,0.00018733,2]
[392256200,1761283020125,-6.59048981,0.00018733,2]
[392256201,1761283020160,-389.28318372,0.00018833,2]
[392256202,1761283020192,-1186.644771,0.00019198,2]
[392256203,1761283020224,-202.7919936,0.00019228,2]
[392256204,1761283020257,-2012.51366049,0.00019447,2]
[392256205,1761283020292,-150.0,0.00019454,2]
[392256206,1761283020324,-91.84814227,0.00019503,2]
[392256207,1761283020444,-1920.66551822,0.00019503,2]
[392256208,1761283020482,-2012.51366049,0.0001974,2]
[392256209,1761283020513,-250.0,0.00019869,2]
[392256210,1761283020545,-163.31228631,0.0002,2]
[392256211,1761283020575,-1200.0,0.00020028,2]
[392256212,1761283020608,-300.0,0.00020028,2]
[392256213,1761283020639,-135.84444591,0.00020029,2]
[392256214,1761283020734,-1876.66921458,0.00020029,2]
[392256215,1761283020765,-300.0,0.00020327,2]
[392256216,1761283020798,-300.0,0.00020327,2]
[392256217,1761283020828,-300.0,0.00020327,2]
[392256218,1761283020858,-300.0,0.00020327,2]
[392256219,1761283020890,-1834.15791035,0.00020328,2]
[392256220,1761283020970,-178.35575014,0.00020328,2]
[392256221,1761283021006,-150.0,0.0002038,2]
[392256222,1761283021039,-693.54662732,0.00020659,2]
[392256223,1761283021069,-800.0,0.00020707,2]
[392256224,1761283021100,-525.33,0.00020722,10]
[392256225,1761283021132,-756.48,0.00020723,10]
[392256226,1761283021261,-572.9,0.00020725,3]
[392256227,1761283021292,-286.45,0.00020725,3]
[392256228,1761283021321,-859.37,0.00020725,3]
[392256229,1761283021487,-630.4,0.00020725,10]
[392256230,1761283021518,-548.33337494,0.00020732,2]
[392256231,1761283021549,-264.83811212,0.00020732,2]
[392256232,1761283021583,-500.0,0.00020732,2]
[392256233,1761283021613,-500.0,0.00020732,2]
[392256234,1761283021645,-500.0,0.00020732,2]
[392256235,1761283021676,-500.0,0.00020732,2]
[392256236,1761283021706,-500.0,0.00020732,2]
[392256237,1761283021739,-500.0,0.00020732,2]
[392256238,1761283021769,-439.25812708,0.00020732,2]
[392256239,1761283021800,-6.00139692,0.00020732,2]
[392256240,1761283021914,-222.34797788,0.00020732,2]
[392256241,1761283021947,-500.0,0.00020732,2]
[392256242,1761283021979,-500.0,0.00020732,2]
[392256243,1761283022010,-764.02399847,0.00020732,2]
[392256244,1761283022043,-500.0,0.00020732,2]
[392256245,1761283022076,-500.0,0.00020732,2]
[392256246,1761283022111,-500.0,0.00020732,2]
[392256247,1761283022145,-500.0,0.00020732,2]
[392256248,1761283022177,-500.0,0.00020732,2]
[392256249,1761283022209,-263.24204883,0.00020732,2]
[392256250,1761283022342,-500.78194964,0.00020732,2]
[392256251,1761283022374,-500.0,0.00020732,2]
[392256252,1761283022405,-500.0,0.00020732,2]
[392256253,1761283022435,-500.0,0.00020732,2]
[392256254,1761283022465,-764.02399847,0.00020732,2]
[392256255,1761283022495,-500.0,0.00020732,2]
[392256256,1761283022527,-383.06460773,0.00020732,2]
[392256257,1761283022559,-500.0,0.00020732,2]
[392256258,1761283022590,-764.02399847,0.00020732,2]
[392256259,1761283022762,-500.0,0.00020732,2]
[392256260,1761283022794,-500.0,0.00020732,2]
[392256261,1761283022826,-500.0,0.00020732,2]
[392256262,1761283022858,-500.0,0.00020732,2]
[392256263,1761283022890,-500.0,0.00020732,2]
[392256264,1761283022922,-500.0,0.00020732,2]
[392256265,1761283022957,-764.02399847,0.00020732,2]
[392256266,1761283022990,-500.0,0.00020732,2]
[392256267,1761283023021,-707.93800459,0.00020732,2]
[392256268,1761283023110,-56.08599388,0.00020732,2]
[392256269,1761283023140,-500.0,0.00020732,2]
[392256270,1761283023170,-500.0,0.00020732,2]
[392256271,1761283023202,-500.0,0.00020732,2]
[392256272,1761283023233,-500.0,0.00020732,2]
[392256273,1761283023262,-764.02399847,0.00020732,2]
[392256274,1761283023291,-500.0,0.00020732,2]
[392256275,1761283023336,-500.0,0.00020732,2]
[392256276,1761283023368,-764.02399847,0.00020732,2]
[392256277,1761283023398,-311.71998558,0.00020732,2]
[392256278,1761283023530,-208.3020472,0.00020732,2]
[392256279,1761283023561,-500.0,0.00020732,2]
[392256280,1761283023593,-500.0,0.00020732,2]
[392256281,1761283023625,-500.0,0.00020732,2]
[392256282,1761283023656,-764.02399847,0.00020732,2]
[392256283,1761283023809,-650.0,0.00020732,2]
[392256284,1761283023841,-764.02399847,0.00020732,2]
[392256285,1761283023872,-500.0,0.00020732,2]
[392256286,1761283023902,-500.0,0.00020732,2]
[392256288,1761283024848,-764.02399847,0.00020732,2]
[392256289,1761283024878,-764.02399847,0.00020732,2]
[392256290,1761283024910,-500.0,0.00020732,2]
[392256291,1761283024941,-160.28790402,0.00020732,2]
[392256292,1761283024970,-764.02399847,0.00020732,2]
[392256293,1761283025000,-764.02399847,0.00020732,2]
[392256294,1761283025031,-500.0,0.00020732,2]
[392256295,1761283025061,-764.02399847,0.00020732,2]
[392256296,1761283025159,-500.0,0.00020732,2]
[392256297,1761283025189,-764.02399847,0.00020732,2]
[392256298,1761283025219,-764.02399847,0.00020732,2]
[392256299,1761283025257,-764.02399847,0.00020732,2]
[392256300,1761283025287,-764.02399847,0.00020732,2]
[392256301,1761283025318,-764.02399847,0.00020732,2]
[392256302,1761283025349,-595.74601683,0.00020732,2]
[392256303,1761283025543,-168.27798164,0.00020732,2]
[392256304,1761283025574,-764.02399847,0.00020732,2]
[392256305,1761283025604,-764.02399847,0.00020732,2]
[392256306,1761283025634,-764.02399847,0.00020732,2]
[392256307,1761283025663,-764.02399847,0.00020732,2]
[392256308,1761283025693,-764.02399847,0.00020732,2]
[392256309,1761283025723,-764.02399847,0.00020732,2]
[392256310,1761283026748,-393.89884847,0.00020725,10]
[392256311,1761283026763,-43.88115153,0.00020725,10]
[392256312,1761283026774,-720.14284694,0.00020732,2]
[392256313,1761283026791,-43.88115153,0.00020732,2]
[392256314,1761283026800,-720.14284694,0.00020732,2]
[392256315,1761283026817,-43.88115153,0.00020732,2]
[392256316,1761283026827,-720.14284694,0.00020732,2]
[392256317,1761283026845,-43.88115153,0.00020732,2]
[392256318,1761283026855,-720.14284694,0.00020732,2]
[392256319,1761283026871,-43.88115153,0.00020732,2]
[392256320,1761283026881,-720.14284694,0.00020732,2]
[392256321,1761283026897,-43.88115153,0.00020732,2]
[392256322,1761283026906,-451.28490355,0.00020732,2]
[392256323,1761283035059,-300.0,0.000187,2]
[392256324,1761283035090,-2012.51366049,0.00020018,2]
[392256325,1761283035124,-2012.51366049,0.00020359,2]
[392256326,1761283035203,-1349.95535804,0.00020597,2]
[392256327,1761283035234,-662.55830245,0.00020597,2]
[392256328,1761283035265,-312.73909492,0.00020732,2]
[392256329,1761283035295,-764.02399847,0.00020732,2]
[392256330,1761283035326,-764.02399847,0.00020732,2]
[392256331,1761283035358,-764.02399847,0.00020732,2]
[392256332,1761283035390,-764.02399847,0.00020732,2]
[392256333,1761283035425,-764.02399847,0.00020732,2]
[392256334,1761283035496,-764.02399847,0.00020732,2]
[392256335,1761283035527,-764.02399847,0.00020732,2]
[392256336,1761283035567,-764.02399847,0.00020732,2]
[392256337,1761283035598,-764.02399847,0.00020732,2]
[392256338,1761283035631,-764.02399847,0.00020732,2]
[392256339,1761283035662,-764.02399847,0.00020732,2]
[392256340,1761283035695,-67.69801989,0.00020732,2]
[392256341,1761283035849,-696.32597858,0.00020732,2]
[392256342,1761283035879,-764.02399847,0.00020732,2]
[392256343,1761283035912,-764.02399847,0.00020732,2]
[392256344,1761283036043,-764.02399847,0.00020732,2]
[392256345,1761283036074,-764.02399847,0.00020732,2]
[392256346,1761283036106,-764.02399847,0.00020732,2]
[392256347,1761283036139,-203.09405967,0.00020732,2]
[392256348,1761283036277,-560.9299388,0.00020732,2]
[392256349,1761283036309,-764.02399847,0.00020732,2]
[392256350,1761283036342,-764.02399847,0.00020732,2]
[392256351,1761283036374,-764.02399847,0.00020732,2]
[392256352,1761283036406,-764.02399847,0.00020732,2]
[392256353,1761283036438,-764.02399847,0.00020732,2]
[392256354,1761283036469,-473.88613923,0.00020732,2]
[392256355,1761283036504,-290.13785924,0.00020732,2]
[392256356,1761283036536,-764.02399847,0.00020732,2]
[392256357,1761283036566,-511.84097732,0.00020732,2]
[392256358,1761283036597,-754.16562431,0.00020732,2]
[392256359,1761283036628,-754.16562431,0.00020732,2]
[392256360,1761283036659,-754.16562431,0.00020732,2]
[392256361,1761283036691,-754.16562431,0.00020732,2]
[392256362,1761283036721,-80.51371115,0.00020732,2]
[392256363,1761283037172,-367.72403741,0.00020725,10]
[392256364,1761283037189,-1.55596259,0.00020725,10]
[392256365,1761283037199,-673.65191316,0.00020732,2]
[392256366,1761283037208,-78.95774856,0.00020732,2]
[392256367,1761283037225,-675.20787575,0.00020732,2]
[392256368,1761283037235,-78.95774856,0.00020732,2]
[392256369,1761283037256,-675.20787575,0.00020732,2]
[392256370,1761283037265,-78.95774856,0.00020732,2]
[392256371,1761283054414,-5000.0,0.00020524,2]
[392256372,1761283054453,-0.01,0.00020725,10]
[392256373,1761283054655,-307.72,0.00020725,10]
[392256374,1761283054692,-9384.57,0.00020732,2]
[392256375,1761283054756,-10000.01,0.00020732,2]
[392256376,1761283054867,-10000.01,0.00020732,2]
[392256377,1761283054979,-2252.28408152,0.00020732,2]
[392256378,1761283055007,-5495.44183696,0.00020732,2]
[392256379,1761283055228,-675.20787575,0.00020732,2]
[392256380,1761283055266,-754.16562431,0.00020732,2]
[392256381,1761283055299,-500.0,0.00020732,2]
[392256382,1761283055329,-754.16562431,0.00020732,2]
[392256383,1761283055363,-754.16562431,0.00020732,2]
[392256384,1761283055395,-500.0,0.00020732,2]
[392256385,1761283055426,-754.16562431,0.00020732,2]
[392256386,1761283055460,-116.26925402,0.00020732,2]
[392256387,1761283055526,-383.73074598,0.00020732,2]
[392256388,1761283055557,-754.16562431,0.00020732,2]
[392256389,1761283055589,-754.16562431,0.00020732,2]
[392256390,1761283055623,-500.0,0.00020732,2]
[392256391,1761283055656,-754.16562431,0.00020732,2]
[392256392,1761283055690,-500.0,0.00020732,2]
[392256393,1761283055722,-754.16562431,0.00020732,2]
[392256394,1761283055754,-500.0,0.00020732,2]
[392256395,1761283056020,-383.73074598,0.00020732,2]
[392256396,1761283056035,-199.22351356,0.00020732,2]
[392256397,1761283060203,-256.44,0.00020725,10]
[392256398,1761283060232,-1200.0,0.00020731,2]
[392256399,1761283060262,-171.21136477,0.00020732,2]
[392256400,1761283060294,-500.0,0.00020732,2]
[392256401,1761283060323,-200.0,0.00020732,2]
[392256402,1761283060352,-754.16562431,0.00020732,2]
[392256403,1761283060382,-500.0,0.00020732,2]
[392256404,1761283060410,-754.16562431,0.00020732,2]
[392256405,1761283060440,-500.0,0.00020732,2]
[392256406,1761283060544,-754.16562431,0.00020732,2]
[392256407,1761283060574,-500.0,0.00020732,2]
[392256408,1761283060604,-500.0,0.00020732,2]
[392256409,1761283060634,-754.16562431,0.00020732,2]
[392256410,1761283060665,-500.0,0.00020732,2]
[392256411,1761283060694,-754.16562431,0.00020732,2]
[392256412,1761283060725,-500.0,0.00020732,2]
[392256413,1761283060753,-500.0,0.00020732,2]
[392256414,1761283060875,-754.16562431,0.00020732,2]
[392256415,1761283060909,-500.0,0.00020732,2]
[392256416,1761283060941,-754.16562431,0.00020732,2]
[392256417,1761283060970,-500.0,0.00020732,2]
[392256418,1761283061000,-754.16562431,0.00020732,2]
[392256419,1761283061029,-500.0,0.00020732,2]
[392256420,1761283061059,-500.0,0.00020732,2]
[392256421,1761283061087,-500.0,0.00020732,2]
[392256422,1761283061207,-500.0,0.00020732,2]
[392256423,1761283061237,-754.16562431,0.00020732,2]
[392256424,1761283061265,-500.0,0.00020732,2]
[392256425,1761283061293,-500.0,0.00020732,2]
[392256426,1761283061324,-500.0,0.00020732,2]
[392256427,1761283061356,-500.0,0.00020732,2]
[392256428,1761283061386,-500.0,0.00020732,2]
[392256429,1761283061414,-500.0,0.00020732,2]
[392256430,1761283061537,-500.0,0.00020732,2]
[392256431,1761283062196,-303.06102736,0.00020732,2]
[392256432,1761283062213,-196.93897264,0.00020732,2]
[392256433,1761283062223,-303.06102736,0.00020732,2]
[392256434,1761283062238,-196.93897264,0.00020732,2]
[392256435,1761283062247,-303.06102736,0.00020732,2]
[392256436,1761283062262,-196.93897264,0.00020732,2]
[392256437,1761283062271,-294.73977874,0.00020732,2]
[392256438,1761283063174,-205.26022126,0.00020732,2]
[392256439,1761283063204,-754.16562431,0.00020732,2]
[392256440,1761283063234,-500.0,0.00020732,2]
[392256441,1761283063266,-754.16562431,0.00020732,2]
[392256442,1761283063295,-500.0,0.00020732,2]
[392256443,1761283063325,-500.0,0.00020732,2]
[392256444,1761283063354,-754.16562431,0.00020732,2]
[392256445,1761283063386,-500.0,0.00020732,2]
[392256446,1761283063419,-500.0,0.00020732,2]
[392256447,1761283063521,-500.0,0.00020732,2]
[392256448,1761283063550,-500.0,0.00020732,2]
[392256449,1761283063579,-500.0,0.00020732,2]
[392256450,1761283063610,-500.0,0.00020732,2]
[392256451,1761283063642,-500.0,0.00020732,2]
[392256452,1761283063673,-500.0,0.00020732,2]
[392256453,1761283063703,-500.0,0.00020732,2]
[392256454,1761283063734,-500.0,0.00020732,2]
[392256455,1761283063765,-500.0,0.00020732,2]
[392256456,1761283063795,-500.0,0.00020732,2]
[392256457,1761283063896,-500.0,0.00020732,2]
[392256458,1761283063927,-500.0,0.00020732,2]
[392256459,1761283063958,-500.0,0.00020732,2]
[392256460,1761283063988,-500.0,0.00020732,2]
[392256461,1761283064021,-500.0,0.00020732,2]
[392256462,1761283064053,-500.0,0.00020732,2]
[392256463,1761283064084,-500.0,0.00020732,2]
[392256464,1761283064120,-500.0,0.00020732,2]
[392256465,1761283064153,-500.0,0.00020732,2]
[392256466,1761283064188,-500.0,0.00020732,2]
[392256467,1761283064271,-500.0,0.00020732,2]
[392256468,1761283064303,-500.0,0.00020732,2]
[392256469,1761283064334,-500.0,0.00020732,2]
[392256470,1761283064364,-500.0,0.00020732,2]
[392256471,1761283064396,-500.0,0.00020732,2]
[392256472,1761283064427,-500.0,0.00020732,2]
[392256473,1761283064459,-500.0,0.00020732,2]
[392256474,1761283064489,-500.0,0.00020732,2]
[392256475,1761283064613,-374.22511351,0.00020732,2]
[392256476,1761283064645,-500.0,0.00020732,2]
[392256477,1761283064766,-500.0,0.00020732,2]
[392256478,1761283064796,-500.0,0.00020732,2]
[392256479,1761283064826,-559.32335811,0.00020732,2]
[392256480,1761283064856,-500.0,0.00020732,2]
[392256481,1761283064885,-500.0,0.00020733,2]
[392256482,1761283064918,-185.80127872,0.00020733,2]
[392256483,1761283064947,-509.81408097,0.00020734,2]
[392256484,1761283065038,-4333.42465554,0.00020735,2]
[392256485,1761283065379,150.0,0.00019504,2]
[392256486,1761283065578,150.0,0.00020433,2]
[392256487,1761283065783,1033.16068892,0.00020524,2]
[392256488,1761283065807,3966.83931108,0.00020524,2]
[392256489,1761283073395,4104.51405037,0.00020735,2]
[392256490,1761283084731,326.30881527,0.00020733,2]
[392256491,1761283085218,300.0,0.00020734,2]
[392256492,1761283085306,500.0,0.00020732,2]
[392256493,1761283085336,500.0,0.00020732,2]
[392256494,1761283085367,302.34782328,0.00020732,2]
[392256495,1761283085391,197.65217672,0.00020732,2]
[392256496,1761283085420,500.0,0.00020732,2]
[392256497,1761283085448,500.0,0.00020732,2]
[392256498,1761283085575,500.0,0.00020732,2]
[392256501,1761283089276,5000.0,0.00020735,2]
[392256502,1761283109792,196.0,0.00016,2]
[392256503,1761283109884,196.0,0.0001604,2]
[392256504,1761283109944,196.0,0.00016081,2]
[392256505,1761283110004,196.0,0.00016121,2]
[392256506,1761283110088,196.0,0.00016162,2]
[392256507,1761283110148,196.0,0.00016202,2]
[392256508,1761283110209,196.0,0.00016242,2]
[392256509,1761283110277,196.0,0.00016283,2]
[392256510,1761283110346,196.0,0.00016323,2]
[392256511,1761283110406,196.0,0.00016363,2]
[392256512,1761283110468,196.0,0.00016404,2]
[392256513,1761283110653,196.0,0.00016444,2]
[392256514,1761283110722,196.0,0.00016485,2]
[392256515,1761283110814,196.0,0.00016525,2]
[392256516,1761283111075,196.0,0.00016565,2]
[392256517,1761283111164,196.0,0.00016606,2]
[392256518,1761283111223,166.35782328,0.00016646,2]
[392256519,1761283111246,29.64217672,0.00016646,2]
[392256520,1761283111727,196.0,0.00016687,2]
[392256521,1761283111782,196.0,0.00016727,2]
[392256522,1761283111846,196.0,0.00016767,2]
[392256523,1761283111910,196.0,0.00016808,2]
[392256524,1761283112001,196.0,0.00016848,2]
[392256525,1761283112055,196.0,0.00016888,2]
[392256526,1761283112111,196.0,0.00016929,2]
[392256527,1761283112293,5000.0,0.00020735,2]
[392256528,1761283112475,196.0,0.00016969,2]
[392256529,1761283112536,196.0,0.0001701,2]
[392256530,1761283112598,196.0,0.0001705,2]
[392256531,1761283112657,196.0,0.0001709,2]
[392256532,1761283112730,196.0,0.00017131,2]
[392256533,1761283112805,196.0,0.00017171,2]
[392256534,1761283112860,196.0,0.00017212,2]
[392256535,1761283112922,196.0,0.00017252,2]
[392256536,1761283112983,196.0,0.00017292,2]
[392256537,1761283113039,196.0,0.00017333,2]
[392256538,1761283113193,196.0,0.00017373,2]
[392256539,1761283113223,196.0,0.00017413,2]
[392256540,1761283113252,196.0,0.00017454,2]
[392256541,1761283113292,196.0,0.00017494,2]
[392256542,1761283113360,196.0,0.00017535,2]
[392256543,1761283113418,196.0,0.00017575,2]
[392256544,1761283113481,196.0,0.00017615,2]
[392256545,1761283113538,196.0,0.00017656,2]
[392256546,1761283113597,70.36782328,0.00017696,2]
[392256547,1761283113621,125.63217672,0.00017696,2]
[392256548,1761283113653,196.0,0.00017737,2]
[392256549,1761283113715,196.0,0.00017777,2]
[392256550,1761283113770,196.0,0.00017817,2]
[392256551,1761283113832,196.0,0.00017858,2]
[392256552,1761283113862,175.46802809,0.00020733,2]
[392256553,1761283113892,196.0,0.00017898,2]
[392256554,1761283113956,196.0,0.00017938,2]
[392256555,1761283114009,196.0,0.00017979,2]
[392256556,1761283114067,196.0,0.00018019,2]
[392256557,1761283114123,196.0,0.0001806,2]
[392256558,1761283114182,326.11009718,0.000181,2]
[392256559,1761283123575,500.0,0.00020732,2]
[392256560,1761283123608,500.0,0.00020732,2]
[392256561,1761283123635,157.21288266,0.00020732,2]
[392256562,1761283123915,500.0,0.00020732,2]
[392256563,1761283123944,500.0,0.00020732,2]
[392256564,1761283124244,500.0,0.00020732,2]
[392256565,1761283124366,500.0,0.00020732,2]
[392256566,1761283124559,500.0,0.00020732,2]
[392256567,1761283124703,500.0,0.00020732,2]
[392256568,1761283124864,500.0,0.00020732,2]
[392256569,1761283125011,297.13316199,0.00020732,2]
[392256570,1761283125726,500.0,0.00020732,2]
[392256571,1761283126116,500.0,0.00020732,2]
[392256572,1761283126444,500.0,0.00020732,2]
[392256573,1761283132000,500.0,0.00020732,2]
[392256574,1761283132452,500.0,0.00020732,2]
[392256575,1761283132485,154.45365336,0.00020734,2]
[392256576,1761283132511,345.54634664,0.00020734,2]
[392256577,1761283132941,500.0,0.00020732,2]
[392256578,1761283135532,5000.0,0.00020735,2]
[392256579,1761283137911,500.0,0.00020734,2]
[392256580,1761283137942,335.55800364,0.00020734,2]
[392256581,1761283139243,500.0,0.00020732,2]
[392256582,1761283139394,500.0,0.00020732,2]
[392256583,1761283139424,500.0,0.00020734,2]
[392256584,1761283139456,500.0,0.00020732,2]
[392256585,1761283139487,500.0,0.00020732,2]
[392256586,1761283139515,500.0,0.00020732,2]
[392256587,1761283139543,157.96434683,0.00020732,2]
[392256588,1761283139574,150.0,0.00019526,2]
[392256589,1761283139601,10.94130289,0.00020732,2]
[392256590,1761283139624,489.05869711,0.00020732,2]
[392256591,1761283139654,500.0,0.00020734,2]
[392256592,1761283139686,500.0,0.00020734,2]
[392256593,1761283139718,500.0,0.00020734,2]
[392256594,1761283139747,500.0,0.00020734,2]
[392256595,1761283139855,150.0,0.00020456,2]
[392256596,1761283143148,300.0,0.00020734,2]
[392256597,1761283143942,500.0,0.00020734,2]
[392256598,1761283144965,500.0,0.00020734,2]
[392256599,1761283145244,284.10330605,0.00020734,2]
[392256600,1761283145274,500.0,0.00020734,2]
[392256601,1761283145306,500.0,0.00020734,2]
[392256602,1761283145336,500.0,0.00020734,2]
[392256603,1761283146493,500.0,0.00020734,2]
[392256604,1761283146802,500.0,0.00020734,2]
[392256605,1761283147079,500.0,0.00020734,2]
[392256606,1761283147109,500.0,0.00020734,2]
[392256607,1761283147142,500.0,0.00020734,2]
[392256608,1761283147403,500.0,0.00020734,2]
[392256609,1761283147448,500.0,0.00020734,2]
[392256610,1761283148054,500.0,0.00020734,2]
[392256611,1761283148418,276.84799684,0.00020734,2]
[392256612,1761283148444,223.15200316,0.00020734,2]
[392256613,1761283148904,500.0,0.00020734,2]
[392256614,1761283149198,500.0,0.00020734,2]
[392256615,1761283149232,500.0,0.00020734,2]
[392256616,1761283149500,500.0,0.00020734,2]
[392256617,1761283150015,500.0,0.00020734,2]
[392256618,1761283150070,500.0,0.00020734,2]
[392256619,1761283150392,500.0,0.00020734,2]
[392256620,1761283150675,500.0,0.00020734,2]
[392256621,1761283150733,164.54319493,0.00020734,2]
[392256622,1761283151039,500.0,0.00020734,2]
[392256623,1761283151396,500.0,0.00020734,2]
[392256624,1761283151655,500.0,0.00020734,2]
[392256625,1761283151710,500.0,0.00020734,2]
[392256626,1761283151738,500.0,0.00020734,2]
[392256627,1761283152011,500.0,0.00020734,2]
[392256628,1761283152041,500.0,0.00020734,2]
[392256629,1761283152071,500.0,0.00020734,2]
[392256630,1761283152100,500.0,0.00020734,2]
[392256631,1761283152129,464.18546502,0.00020734,2]
[392256632,1761283152160,500.0,0.00020734,2]
[392256633,1761283152198,148.12933689,0.00020734,2]
[392256634,1761283152221,351.87066311,0.00020734,2]
[392256635,1761283152254,171.12305476,0.00020734,2]
[392256636,1761283158126,5000.0,0.00020735,2]
[392256637,1761283165822,4477.01628213,0.00019178,2]
[392256638,1761283165846,522.98371787,0.00019178,2]
[392256639,1761283180893,5000.0,0.00020735,2]
[392256640,1761283201986,300.0,0.00020734,2]
[392256641,1761283202419,249.0,0.00020734,2]